fUST/lending_fUST_20240924
["ID","MTS","AMOUNT","RATE_DAILY","PERIOD"]
[339038606,1727163043109,-500.0,0.00032876,14]
[339038607,1727163043118,-500.0,0.00032876,14]
[339038608,1727163043127,-500.0,0.00032876,14]
[339038609,1727163043137,-609.7803794,0.00032876,14]
[339038610,1727163043147,-504.467003,0.00032876,14]
[339038612,1727163043156,-500.0,0.00032876,10]
[339038614,1727163043165,-500.0,0.00032876,14]
[339038616,1727163043174,-507.19210302,0.00032876,14]
[339038618,1727163043183,-501.57545733,0.00032876,14]
[339038620,1727163043193,-504.5494285,0.00032876,14]
[339038622,1727163043202,-500.0,0.00032876,14]
[339038624,1727163043211,-500.0,0.00032876,14]
[339038626,1727163043220,-500.0,0.00032876,14]
[339038628,1727163043230,-500.0,0.00032876,14]
[339038630,1727163043240,-506.36430358,0.00032876,14]
[339038632,1727163043249,-508.7672177,0.00032876,14]
[339038633,1727163043258,-500.0,0.00032876,14]
[339038636,1727163043267,-503.12137799,0.00032876,14]
[339038637,1727163043277,-500.0,0.00032876,14]
[339038639,1727163043286,-500.0,0.00032876,14]
[339038641,1727163043295,-506.26819144,0.00032876,14]
[339038643,1727163043305,-500.0,0.00032876,14]
[339038645,1727163043314,-505.15753913,0.00032876,14]
[339038647,1727163043323,-399.80816064,0.00032876,14]
[339038649,1727163043333,-500.0,0.00032876,14]
[339038651,1727163043343,-500.0,0.00032876,14]
[339038653,1727163043352,-500.0,0.00032876,14]
[339038655,1727163043362,-500.0,0.00032876,14]
[339038657,1727163043372,-509.60255102,0.00032876,14]
[339038659,1727163043381,-500.0,0.00032876,14]
[339038661,1727163043390,-513.62247615,0.00032876,14]
[339038663,1727163043401,-500.0,0.00032876,14]
[339038665,1727163043410,-602.8179419,0.00032876,14]
[339038667,1727163043419,-500.0,0.00032876,14]
[339038669,1727163043428,-506.68378167,0.00032876,14]
[339038671,1727163043437,-500.0,0.00032876,14]
[339038673,1727163043447,-510.65051582,0.00032876,14]
[339038675,1727163043456,-500.0,0.00032876,14]
[339038677,1727163043466,-500.0,0.00032876,14]
[339038679,1727163043475,-508.86854625,0.00032876,14]
[339038681,1727163043484,-500.0,0.00032876,14]
[339038683,1727163043493,-501.92014254,0.00032876,14]
[339038685,1727163043502,-509.73725617,0.00032876,14]
[339038687,1727163043511,-500.0,0.00032876,14]
[339038689,1727163043520,-513.27468799,0.00032876,14]
[339038691,1727163043530,-500.0,0.00032876,14]
[339038693,1727163043539,-500.0,0.00032876,14]
[339038695,1727163043548,-507.50271927,0.00032876,14]
[339038697,1727163043557,-502.13711395,0.00032876,14]
[339038699,1727163043567,-500.0,0.00032876,120]
[339038701,1727163043577,-532.75035274,0.00032876,14]
[339038703,1727163043587,-500.0,0.00032876,14]
[339038705,1727163043596,-500.0,0.00032876,14]
[339038707,1727163043605,-500.0,0.00032876,14]
[339038709,1727163043615,-151.0,0.00032876,7]
[339038711,1727163043624,-151.0,0.00032876,7]
[339038713,1727163043633,-500.0,0.00032876,14]
[339038715,1727163043642,-245.379553,0.00032876,7]
[339038717,1727163043653,-245.379553,0.00032876,7]
[339038719,1727163043662,-245.379559,0.00032876,7]
[339038721,1727163043672,-293.759466,0.00032876,7]
[339038723,1727163043681,-293.759466,0.00032876,7]
[339038725,1727163043690,-500.0,0.00032876,14]
[339038727,1727163043700,-500.0,0.00032876,14]
[339038729,1727163043709,-293.759466,0.00032876,7]
[339038731,1727163043718,-293.75947391,0.00032876,7]
[339038733,1727163043727,-502.6106029,0.00032876,14]
[339038735,1727163043737,-500.0,0.00032876,14]
[339038737,1727163043746,-500.0,0.00032876,14]
[339038739,1727163043756,-500.0,0.00032876,14]
[339038741,1727163043765,-500.0,0.00032876,14]
[339038743,1727163043775,-500.0,0.00032876,14]
[339038745,1727163043785,-500.0,0.00032876,14]
[339038747,1727163043794,-500.0,0.00032876,7]
[339038749,1727163043803,-500.0,0.00032876,14]
[339038751,1727163043812,-510.937219,0.00032876,14]
[339038753,1727163043821,-249.71789282,0.00032876,14]
[339038755,1727163043830,-500.0,0.00032876,14]
[339038757,1727163043843,-500.0,0.00032876,14]
[339038759,1727163043852,-509.23280219,0.00032876,14]
[339038761,1727163043862,-182.28402854,0.00032876,14]
[339038763,1727163043871,-500.0,0.00032876,14]
[339038765,1727163043881,-500.0,0.00032876,14]
[339038767,1727163043890,-510.26424694,0.00032876,14]
[339038769,1727163043899,-500.0,0.00032876,14]
[339038771,1727163043909,-502.28777492,0.00032876,14]
[339038773,1727163043919,-1002.68,0.00032876,14]
[339038775,1727163043929,-548.90148777,0.00032876,14]
[339038777,1727163043938,-500.0,0.00032876,14]
[339038779,1727163043947,-500.0,0.00032876,14]
[339038781,1727163043956,-500.94287745,0.00032876,14]
[339038783,1727163043965,-224.57548771,0.00032876,14]
[339038785,1727163043974,-500.0,0.00032876,14]
[339038787,1727163043983,-500.0,0.00032876,14]
[339038789,1727163043993,-502.40790724,0.00032876,14]
[339038791,1727163044002,-634.98124943,0.00032876,14]
[339038793,1727163044012,-500.0,0.00032876,14]
[339038795,1727163044021,-501.0810815,0.00032876,14]
[339038797,1727163044030,-500.0,0.00032876,14]
[339038800,1727163044040,-500.0,0.00032876,14]
[339038802,1727163044049,-500.0,0.00032876,14]
[339038803,1727163044058,-517.74795961,0.00032876,14]
[339038805,1727163044067,-514.02883265,0.00032876,14]
[339038806,1727163044077,-151.0,0.00032876,7]
[339038807,1727163044086,-500.0,0.00032876,14]
[339038808,1727163044097,-500.0,0.00032876,14]
[339038809,1727163044106,-500.0,0.00032876,14]
[339038810,1727163044116,-500.0,0.00032876,14]
[339038811,1727163044125,-500.0,0.00032876,14]
[339038812,1727163044134,-549.42,0.00032876,14]
[339038813,1727163044143,-959.95,0.00032876,14]
[339038814,1727163044153,-778.23,0.00032876,2]
[339038815,1727163044162,-527.07371471,0.00032876,14]
[339038816,1727163044172,-500.0,0.00032876,2]
[339038817,1727163044181,-500.0,0.00032876,14]
[339038818,1727163044191,-500.11720814,0.00032876,14]
[339038819,1727163044200,-500.0,0.00032876,14]
[339038820,1727163044209,-597.5,0.00032876,14]
[339038821,1727163044218,-500.0,0.00032876,14]
[339038822,1727163044227,-500.0,0.00032876,14]
[339038823,1727163044236,-500.0,0.00032876,14]
[339038824,1727163044246,-500.0,0.00032876,14]
[339038825,1727163044255,-500.0,0.00032876,14]
[339038826,1727163044264,-520.34350233,0.00032876,14]
[339038827,1727163044273,-547.75874757,0.00032876,14]
[339038828,1727163044282,-500.0,0.00032876,14]
[339038829,1727163044292,-510.68399405,0.00032876,14]
[339038830,1727163044301,-500.0,0.00032876,14]
[339038831,1727163044310,-500.0,0.00032876,14]
[339038832,1727163044319,-500.9664845,0.00032876,14]
[339038837,1727163044329,-500.0,0.00032876,14]
[339038839,1727163044407,-503.39741552,0.00032876,14]
[339038840,1727163044416,-500.0,0.00032876,14]
[339038841,1727163044425,-1000.0,0.00032876,14]
[339038842,1727163044434,-622.42329188,0.00032876,14]
[339038844,1727163044443,-500.0,0.00032876,14]
[339038846,1727163044453,-151.0,0.00032876,7]
[339038848,1727163044463,-519.16031092,0.00032876,14]
[339038849,1727163044473,-500.0,0.00032876,14]
[339038850,1727163044482,-556.13,0.00032876,7]
[339038851,1727163044491,-502.04910629,0.00032876,14]
[339038852,1727163044501,-504.28874571,0.00032876,14]
[339038853,1727163044510,-500.0,0.00032876,14]
[339038854,1727163044519,-503.49790405,0.00032876,14]
[339038855,1727163044528,-500.0,0.00032876,14]
[339038856,1727163044538,-502.85870588,0.00032876,14]
[339038857,1727163044547,-317.06107184,0.00032876,14]
[339038858,1727163044557,-500.0,0.00032876,14]
[339038859,1727163044566,-511.78589496,0.00032876,14]
[339038860,1727163044576,-506.67560038,0.00032876,14]
[339038861,1727163044586,-500.0,0.00032876,14]
[339038862,1727163044596,-500.0,0.00032876,14]
[339038863,1727163044605,-453.49026575,0.00032876,14]
[339038864,1727163044615,-500.0,0.00032876,14]
[339038865,1727163044624,-500.0,0.00032876,14]
[339038866,1727163044633,-616.68,0.00032876,14]
[339038867,1727163044643,-517.83874503,0.00032876,14]
[339038868,1727163044652,-500.0,0.00032876,14]
[339038869,1727163044662,-505.15003238,0.00032876,14]
[339038870,1727163044671,-500.0,0.00032876,14]
[339038871,1727163044680,-500.0,0.00032876,14]
[339038872,1727163044689,-232.401014,0.00032876,7]
[339038873,1727163044698,-501.88673691,0.00032876,14]
[339038874,1727163044708,-500.0,0.00032876,14]
[339038875,1727163044717,-500.0,0.00032876,14]
[339038876,1727163044726,-586.55,0.00032876,14]
[339038877,1727163044735,-5742.68,0.00032876,7]
[339038878,1727163044744,-232.401005,0.00032876,7]
[339038879,1727163044754,-500.0,0.00032876,14]
[339038880,1727163044763,-500.0,0.00032876,14]
[339038881,1727163044772,-500.0,0.00032876,14]
[339038882,1727163044781,-500.0,0.00032876,14]
[339038883,1727163044790,-474.94507989,0.00032876,14]
[339038884,1727163044799,-515.45512892,0.00032876,14]
[339038885,1727163044809,-503.13761805,0.00032876,14]
[339038886,1727163044818,-514.7760318,0.00032876,14]
[339038887,1727163044828,-500.0,0.00032876,14]
[339038888,1727163044839,-606.85237524,0.00032876,14]
[339038889,1727163044851,-507.63939193,0.00032876,14]
[339038890,1727163044859,-505.09,0.00032876,14]
[339038891,1727163044868,-500.0,0.00032876,14]
[339038892,1727163044878,-500.0,0.00032876,14]
[339038893,1727163044889,-2022.01,0.00032876,14]
[339038894,1727163044898,-1246.53,0.00032876,14]
[339038895,1727163044908,-500.0,0.00032876,14]
[339038896,1727163044919,-500.0,0.00032876,14]
[339038897,1727163044928,-500.0,0.00032876,14]
[339038898,1727163044938,-507.42496118,0.00032876,14]
[339038899,1727163044947,-611.02389795,0.00032876,14]
[339038900,1727163044955,-501.13183957,0.00032876,14]
[339038901,1727163044965,-500.0,0.00032876,14]
[339038902,1727163044975,-500.0,0.00032876,14]
[339038903,1727163044984,-581.42176544,0.00032876,14]
[339038904,1727163044993,-501.94045062,0.00032876,14]
[339038905,1727163045003,-500.0,0.00032876,14]
[339038906,1727163045013,-502.44081496,0.00032876,14]
[339038907,1727163045022,-501.26361376,0.00032876,14]
[339038908,1727163045031,-502.14106273,0.00032876,14]
[339038909,1727163045041,-500.0,0.00032876,14]
[339038910,1727163045050,-500.0,0.00032876,14]
[339038911,1727163045059,-619.12858028,0.00032876,14]
[339038912,1727163045068,-500.0,0.00032876,14]
[339038913,1727163045078,-861.23,0.00032876,7]
[339038914,1727163045088,-500.0,0.00032876,14]
[339038915,1727163045097,-500.0,0.00032876,14]
[339038916,1727163045107,-500.0,0.00032876,14]
[339038917,1727163045116,-500.0,0.00032876,14]
[339038918,1727163045125,-510.2550823,0.00032876,14]
[339038919,1727163045134,-500.0,0.00032876,14]
[339038920,1727163045143,-528.98137698,0.00032876,14]
[339038921,1727163045152,-500.0,0.00032876,14]
[339038922,1727163045161,-533.76219512,0.00032876,14]
[339038923,1727163045170,-500.86454985,0.00032876,14]
[339038924,1727163045179,-500.0,0.00032876,14]
[339038925,1727163045188,-927.59,0.00032876,14]
[339038926,1727163045198,-500.0,0.00032876,14]
[339038927,1727163045207,-500.0,0.00032876,14]
[339038928,1727163045216,-500.0,0.00032876,14]
[339038929,1727163045226,-188.203383,0.00032876,7]
[339038930,1727163045235,-383.54,0.00032876,14]
[339038931,1727163045244,-500.0,0.00032876,14]
[339038932,1727163045253,-533.51944095,0.00032876,14]
[339038933,1727163045262,-506.74569083,0.00032876,14]
[339038934,1727163045271,-188.203383,0.00032876,7]
[339038935,1727163045282,-500.73381848,0.00032876,14]
[339038936,1727163045291,-508.68177542,0.00032876,14]
[339038937,1727163045300,-500.0,0.00032876,14]
[339038938,1727163045309,-500.0,0.00032876,14]
[339038939,1727163045319,-500.0,0.00032876,14]
[339038940,1727163045328,-500.0,0.00032876,14]
[339038941,1727163045338,-506.94841748,0.00032876,14]
[339038942,1727163045347,-500.0,0.00032876,14]
[339038943,1727163045356,-505.40314311,0.00032876,14]
[339038944,1727163045365,-547.9642561,0.00032876,14]
[339038945,1727163045374,-500.0,0.00032876,14]
[339038946,1727163045384,-500.0,0.00032876,14]
[339038947,1727163045392,-501.11837324,0.00032876,14]
[339038948,1727163045402,-500.0,0.00032876,14]
[339038949,1727163045411,-501.07119201,0.00032876,2]
[339038950,1727163045420,-500.0,0.00032876,14]
[339038951,1727163045429,-500.0,0.00032876,14]
[339038952,1727163045438,-514.17611562,0.00032876,14]
[339038953,1727163045447,-506.81226098,0.00032876,14]
[339038954,1727163045456,-3000.0,0.0003288,13]
[339038955,1727163045465,-3000.0,0.0003289,13]
[339038956,1727163045474,-150.112233,0.000329,6]
[339038957,1727163045484,-150.112233,0.000329,5]
[339038958,1727163045493,-150.112233,0.000329,6]
[339038959,1727163045502,-263.799996,0.000329,8]
[339038960,1727163045512,-150.112233,0.000329,7]
[339038961,1727163045521,-150.112233,0.000329,5]
[339038962,1727163045530,-3000.0,0.000329,13]
[339038963,1727163045540,-155.43,0.000329,30]
[339038964,1727163045549,-10322.53,0.000329,14]
[339038965,1727163045559,-2769.21,0.000329,14]
[339038966,1727163045569,-4680.21,0.000329,14]
[339038967,1727163045583,-289.0,0.000329,14]
[339038968,1727163045593,-3000.0,0.0003291,13]
[339038969,1727163045603,-3000.0,0.0003292,13]
[339038970,1727163045612,-3000.0,0.0003293,14]
[339038971,1727163045621,-3000.0,0.0003294,14]
[339038973,1727163045693,-3000.0,0.0003295,14]
[339038974,1727163045703,-5727.48132,0.0003296,14]
[339038975,1727163045712,-500.0,0.0003299,120]
[339038976,1727163045721,-500.0,0.0003299,120]
[339038977,1727163045730,-500.0,0.0003299,120]
[339038978,1727163045739,-500.0,0.0003299,120]
[339038979,1727163045748,-500.0,0.0003299,120]
[339038980,1727163045758,-626.04,0.0003299,120]
[339038981,1727163045766,-500.0,0.0003299,120]
[339038982,1727163045776,-322.07,0.0003299,120]
[339038983,1727163045785,-500.0,0.0003299,120]
[339038984,1727163045794,-5897.64976156,0.00033,120]
[339038985,1727163045911,-3034.03945104,0.00033,120]
[339038986,1727163045967,-835.92,0.0003189,3]
[339038987,1727163045976,-356.59103303,0.00033,120]
[339038988,1727163045987,-2053.425,0.00033,120]
[339039024,1727163483069,-4362.10425562,0.000199,2]
[339039025,1727163483095,-300.0,0.00019999,2]
[339039026,1727163483121,-300.0,0.00019999,2]
[339039027,1727163483145,-1031.09282003,0.0002,2]
[339039028,1727163483171,-2648.03317719,0.0002,2]
[339039029,1727163489766,613.75439765,0.000199,2]
[339039052,1727163604678,795.48522132,0.00017661,2]
[339039162,1727164019078,3144.1366185,0.00019907,2]
[339039163,1727164019128,-5936.10021299,0.00020458,2]
[339039164,1727164025106,-300.0,0.00020457,2]
[339039165,1727164025128,-8216.66381531,0.00020458,2]
[339039166,1727164025150,-300.0,0.000206,2]
[339039167,1727164025171,-500.0,0.00020601,2]
[339039168,1727164025194,-353.61024455,0.00020601,2]
[339039169,1727164025226,-146.38975545,0.00020601,2]
[339039170,1727164025248,-500.0,0.00020601,2]
[339039171,1727164025271,-500.0,0.00020601,2]
[339039172,1727164025298,-500.0,0.00020601,2]
[339039173,1727164025320,-500.0,0.00020601,2]
[339039174,1727164025340,-500.0,0.00020601,2]
[339039175,1727164025361,-500.0,0.00020601,2]
[339039176,1727164025386,-500.0,0.00020601,2]
[339039177,1727164025409,-500.0,0.00020601,2]
[339039178,1727164025433,-500.0,0.00020601,2]
[339039179,1727164025456,-500.0,0.00020601,2]
[339039180,1727164025478,-503.68231205,0.00020601,2]
[339039181,1727164025502,-500.0,0.00020601,2]
[339039182,1727164025528,-625.48557969,0.00020601,2]
[339039183,1727164025552,-500.0,0.00020601,2]
[339039184,1727164025576,-500.0,0.00020601,2]
[339039185,1727164025599,-500.0,0.00020601,2]
[339039186,1727164025621,-571.39419309,0.00020601,2]
[339039187,1727164025646,-500.0,0.00020601,2]
[339039188,1727164025667,-500.0,0.00020601,2]
[339039189,1727164025690,-500.0,0.00020601,2]
[339039190,1727164025715,-500.0,0.00020601,2]
[339039191,1727164025738,-500.0,0.00020601,2]
[339039192,1727164025761,-232.75370273,0.00020601,2]
[339039193,1727164036092,-165.82446434,0.00020601,2]
[339039194,1727164046102,-101.42183293,0.00020601,2]
[339039195,1727164046125,-500.0,0.00020601,2]
[339039196,1727164046146,-279.95405062,0.00020601,2]
[339039197,1727164046169,-500.0,0.00020601,2]
[339039198,1727164046192,-500.0,0.00020601,2]
[339039199,1727164046214,-500.0,0.00020601,2]
[339039200,1727164046237,-500.0,0.00020601,2]
[339039201,1727164046259,-500.0,0.00020601,2]
[339039202,1727164046281,-500.0,0.00020601,2]
[339039203,1727164046306,-500.0,0.00020601,2]
[339039204,1727164046327,-500.0,0.00020601,2]
[339039205,1727164046350,-500.0,0.00020601,2]
[339039206,1727164046374,-500.0,0.00020601,2]
[339039207,1727164046396,-500.0,0.00020601,2]
[339039208,1727164046419,-500.0,0.00020601,2]
[339039209,1727164046442,-500.0,0.00020601,2]
[339039210,1727164046465,-500.0,0.00020601,2]
[339039211,1727164046487,-404.27955646,0.00020601,2]
[339039212,1727164046509,-500.0,0.00020601,2]
[339039213,1727164046530,-500.0,0.00020601,2]
[339039214,1727164046555,-500.0,0.00020601,2]
[339039215,1727164046577,-500.0,0.00020601,2]
[339039216,1727164046599,-500.0,0.00020601,2]
[339039217,1727164046621,-500.0,0.00020601,2]
[339039218,1727164046644,-500.0,0.00020601,2]
[339039219,1727164046666,-500.0,0.00020601,2]
[339039220,1727164046689,-500.0,0.00020601,2]
[339039221,1727164046710,-500.0,0.00020601,2]
[339039222,1727164046732,-500.0,0.00020601,2]
[339039223,1727164046754,-500.0,0.00020601,2]
[339039224,1727164046776,-500.0,0.00020601,2]
[339039225,1727164046800,-500.0,0.00020601,2]
[339039226,1727164046824,-500.0,0.00020601,2]
[339039227,1727164046847,-500.0,0.00020601,2]
[339039228,1727164046869,-500.0,0.00020601,2]
[339039229,1727164046890,-500.0,0.00020601,2]
[339039230,1727164047021,-500.0,0.00020601,2]
[339039231,1727164047046,-500.0,0.00020601,2]
[339039232,1727164047070,-500.0,0.00020601,2]
[339039233,1727164047093,-615.42795564,0.00020601,2]
[339039234,1727164047114,-500.0,0.00020601,2]
[339039235,1727164047135,-24900.0,0.00020602,2]
[339039236,1727164047156,-3000.0,0.00020649,2]
[339039237,1727164047177,-250.0,0.00020832,2]
[339039238,1727164047197,-1023.13394866,0.00021,2]
[339039239,1727164047218,-174.100888,0.00021157,2]
[339039240,1727164047238,-2635.2550129,0.00021506,2]
[339039241,1727164047259,-1910.79366018,0.00021567,2]
[339039242,1727164047281,-17122.6363271,0.00021768,2]
[339039243,1727164047315,-500.0,0.00021847,2]
[339039244,1727164047338,-500.0,0.00021847,2]
[339039245,1727164047359,-500.0,0.00021847,2]
[339039246,1727164047384,-181.69381709,0.00021847,2]
[339039247,1727164047406,-184.84991053,0.00021847,2]
[339039248,1727164047428,-500.0,0.00021847,2]
[339039249,1727164047449,-514.91774619,0.00021847,2]
[339039250,1727164047472,-500.0,0.00021847,2]
[339039251,1727164047495,-500.0,0.00021847,2]
[339039252,1727164047517,-500.0,0.00021847,2]
[339039253,1727164047540,-500.0,0.00021847,2]
[339039254,1727164047563,-500.0,0.00021847,2]
[339039255,1727164047587,-741.94751247,0.00021848,2]
[339039256,1727164047607,-500.0,0.00021958,2]
[339039257,1727164047628,-500.0,0.00021958,2]
[339039258,1727164047650,-640.15669743,0.0002205,2]
[339039259,1727164047671,-500.0,0.0002221,30]
[339039260,1727164047695,-637.6063044,0.00022258,2]
[339039261,1727164047717,-169.570208,0.00022351,2]
[339039262,1727164047739,-420.0,0.00022417,2]
[339039263,1727164047760,-420.0,0.00022503,2]
[339039264,1727164047781,-500.78881432,0.00022506,2]
[339039265,1727164047803,-1000.0,0.00022506,2]
[339039266,1727164047824,-510.6506218,0.00022714,2]
[339039267,1727164047845,-1527.664041,0.00022752,2]
[339039268,1727164047867,-12947.7561762,0.00022896,2]
[339039269,1727164047887,-500.0,0.0002291,2]
[339039270,1727164047910,-250.0,0.00022958,2]
[339039271,1727164047933,-200.0,0.00023,2]
[339039272,1727164047961,-500.0,0.00023008,2]
[339039273,1727164047994,-500.32595177,0.00023008,2]
[339039274,1727164048024,-500.0,0.00023008,2]
[339039275,1727164048056,-500.0,0.00023008,2]
[339039276,1727164048089,-250.0,0.00023021,2]
[339039277,1727164048122,-250.0,0.00023084,2]
[339039278,1727164048151,-246.6908419,0.00023106,2]
[339039279,1727164048182,-250.0,0.00023147,2]
[339039280,1727164048211,-621.00783487,0.00023153,2]
[339039281,1727164048237,-250.0,0.0002321,2]
[339039282,1727164048265,-250.0,0.00023273,2]
[339039283,1727164048297,-250.0,0.00023336,2]
[339039284,1727164048329,-250.0,0.00023399,2]
[339039285,1727164048359,-1527.664041,0.00023437,2]
[339039286,1727164048383,-1001.2880644,0.00023458,2]
[339039287,1727164048415,-250.0,0.00023462,2]
[339039288,1727164048442,-500.0,0.000235,2]
[339039289,1727164048474,-250.0,0.00023525,2]
[339039290,1727164048501,-1000.0,0.00023556,2]
[339039291,1727164048525,-500.0,0.00023556,2]
[339039292,1727164048553,-250.0,0.00023588,2]
[339039293,1727164048581,-250.0,0.00023651,2]
[339039294,1727164048609,-346.845641,0.00023706,2]
[339039295,1727164048634,-346.845641,0.00023712,2]
[339039296,1727164048661,-250.0,0.00023714,2]
[339039297,1727164048688,-182.16339231,0.00023718,2]
[339039298,1727164048715,-346.845641,0.00023718,2]
[339039299,1727164048741,-346.845641,0.00023724,2]
[339039300,1727164048768,-346.845641,0.00023731,2]
[339039301,1727164048794,-346.845641,0.00023737,2]
[339039302,1727164048820,-346.845641,0.00023743,2]
[339039303,1727164048846,-346.845641,0.00023749,2]
[339039304,1727164048872,-346.845641,0.00023756,2]
[339039305,1727164048898,-346.845641,0.00023762,2]
[339039306,1727164048923,-346.845641,0.00023768,2]
[339039307,1727164048950,-346.845641,0.00023774,2]
[339039308,1727164048977,-250.0,0.00023777,2]
[339039309,1727164049004,-346.845641,0.00023781,2]
[339039310,1727164049032,-346.845641,0.00023787,2]
[339039311,1727164049058,-346.845641,0.00023793,2]
[339039312,1727164049082,-346.845641,0.00023799,2]
[339039313,1727164049273,-346.845641,0.00023806,2]
[339039314,1727164049306,-346.845641,0.00023812,2]
[339039315,1727164049328,-346.845641,0.00023818,2]
[339039316,1727164049350,-346.845641,0.00023824,2]
[339039317,1727164049372,-500.0,0.00023829,2]
[339039318,1727164049395,-250.0,0.0002384,2]
[339039319,1727164049417,-250.0,0.00023903,2]
[339039320,1727164049441,-73864.3847402,0.00023934,3]
[339039321,1727164049463,-14334.8892899,0.00023934,3]
[339039322,1727164049485,-250.0,0.00023966,2]
[339039323,1727164049507,-250.0,0.00024028,2]
[339039324,1727164049528,-296.94,0.00024048,2]
[339039325,1727164049550,-250.0,0.00024091,2]
[339039326,1727164049571,-1527.664041,0.00024122,2]
[339039327,1727164049594,-250.0,0.00024154,2]
[339039328,1727164049616,-358.873514,0.0002419,2]
[339039329,1727164049637,-383.04284307,0.00024377,2]
[339039330,1727164049659,-587.0,0.00024395,2]
[339039331,1727164049681,-1910.79366017,0.00024472,2]
[339039332,1727164049703,-587.0,0.00024753,2]
[339039333,1727164049724,-500.0,0.00025,30]
[339039334,1727164049747,-431.45353472,0.00025,30]
[339039335,1727164049768,-500.0,0.00025,30]
[339039336,1727164049789,-738.922996,0.00025,30]
[339039337,1727164049809,-593.39227111,0.00025073,2]
[339039338,1727164049829,-500.0,0.00025073,2]
[339039339,1727164049850,-500.0,0.00025073,2]
[339039340,1727164049870,-413.12501748,0.00025073,2]
[339039341,1727164049890,-169.570208,0.00025397,2]
[339039342,1727164049911,-174.680163,0.00025543,2]
[339039343,1727164049934,-297.55886156,0.00025621,2]
[339039344,1727164049956,-572.38718634,0.00025621,2]
[339039345,1727164049976,-660.0,0.00026301,2]
[339039346,1727164049999,-73604.59275962,0.00026328,4]
[339039347,1727164054098,-209.0432937,0.000216,2]
[339039348,1727164054120,-209.0432937,0.000216,2]
[339039349,1727164054141,-209.0432937,0.00023945,2]
[339039350,1727164054161,-209.0432937,0.000254,2]
[339039351,1727164054182,-259.79198058,0.00026328,4]
[339039352,1727164054204,-14334.8892899,0.00026328,4]
[339039353,1727164054226,-823.0,0.00026547,2]
[339039354,1727164054247,-506.18195658,0.00026973,2]
[339039355,1727164054268,-500.0,0.00026973,2]
[339039356,1727164054288,-500.0,0.00026973,2]
[339039357,1727164054314,-66479.9459487,0.0002698,4]
[339039403,1727164232598,-1311.975709,0.0002593,2]
[339039405,1727164232608,-211.58607818,0.00026684,8]
[339039407,1727164232619,-544.55301512,0.00026684,8]
[339039409,1727164232629,-232.575463,0.00026704,2]
[339039411,1727164232639,-232.575463,0.00026777,2]
[339039423,1727164232748,-232.575463,0.0002685,2]
[339039425,1727164232758,-409.16959842,0.00026886,2]
[339039427,1727164232767,-232.575463,0.00026924,2]
[339039429,1727164232776,-409.16959842,0.00026928,2]
[339039431,1727164232786,-756.1390933,0.00026951,8]
[339039433,1727164232796,-409.16959842,0.0002697,2]
[339039435,1727164232805,-209.0432937,0.00026986,2]
[339039436,1727164232815,-232.575463,0.00026997,2]
[339039437,1727164232824,-300.0,0.00026998,2]
[339039438,1727164232833,-300.0,0.00026999,2]
[339039439,1727164232843,-1167.41605561,0.00027,2]
[339039441,1727164238733,-1074.47489554,0.00027,2]
[339039452,1727164240499,-1286.63394922,0.00027,2]
[339039453,1727164240544,-3191.5744548,0.00027,2]
[339039454,1727164240554,-232.575463,0.0002707,2]